Cogmind - Beta 15 @@@ ROGUE MODE // 2025.07.26 @ 12:46:10 Player: FrigidRock Result: Destroyed by L-31 Rogue with Katana Performance ------------- Evolutions (2) 1000 Regions Visited (4) 800 Robots Destroyed (95) 475 Value Destroyed (3008) 3008 Prototype IDs (6) 120 Alien Tech Used (0) 0 Bonus (744) 744 TOTAL SCORE: 6147 Bonus ------- High Alert Combat Kills 44 Entered Garrisons 200 Used RIF Installer 500 Cogmind --------- Core Integrity 0/550 Matter 300/300 Energy 82/100 System Corruption 3% Temperature Cool (18) Movement Core (1500) Ox29 Location -8/Garrison Parts ------- > --- POWER (1) -------- (None) > --- PROPULSION (2) --- (None) > --- UTILITY (6) ------ Improved Heat Sink Improved Heat Sink Huge Storage Unit Visual Processing Unit Relay Coupler [Duelist] (15) > --- WEAPON (2) ------- Ion Cannon > --- INVENTORY (25) --- Relay Coupler [NC] (36) Relay Coupler [NC] (38) Relay Coupler [Swarmer] (21) Relay Coupler [Brawler] (26) Relay Coupler [Sentry] (25) Relay Coupler [Sentry] (33) Relay Coupler [Sentry] (20) Relay Coupler [Sentry] (17) Relay Coupler [Demolisher] (21) Relay Coupler [Demolisher] (23) Relay Coupler [Specialist] (24) Relay Coupler [Hunter] (22) Relay Coupler [Hunter] (12) Particle Gun Ion Cannon Ion Cannon EMP Blaster Improved Grenade Launcher Remote Datajack Peak State ------------ > --- POWER ------------ Light Nuclear Core > --- PROPULSION ------- Compact Wheel Compact Wheel > --- UTILITY ---------- Improved Heat Sink Improved Heat Sink Huge Storage Unit Visual Processing Unit Light Armor Plating Improved Light Armor Plating > --- WEAPON ----------- Advanced Beam Cannon Remote Datajack > --- INVENTORY -------- Light Nuclear Core Light Nuclear Core Wheel Relay Coupler [NC] Relay Coupler [NC] Relay Coupler [Grunt] Relay Coupler [Duelist] Relay Coupler [Sentry] Relay Coupler [Sentry] Relay Coupler [Sentry] Relay Coupler [Sentry] Relay Coupler [Demolisher] Relay Coupler [Specialist] Relay Coupler [Hunter] Tractor Beam Heavy EM Shotgun Particle Gun Ion Cannon Ion Cannon Ion Cannon EMP Blaster Improved Grenade Launcher [Rating: 31] Favorites ----------- Power Heavy Ion Engine Engine Heavy Ion Engine Power Core Light Nuclear Core Propulsion Compact Wheel Treads Armored Treads Leg Improved Aluminum Leg Wheel Compact Wheel Hover Unit Gravmag System Utility Visual Processing Unit Device Heat Sink Storage Huge Storage Unit Processor Visual Processing Unit Hackware System Shield Protection Light Armor Plating Weapon Advanced Beam Cannon Energy Gun Medium Laser Energy Cannon Advanced Beam Cannon Ballistic Gun Shotgun Launcher Mini Grenade Launcher Special Weapon Remote Datajack Build | -11 -10 -9 -8 -8 ------- Run | Yrd Mat Mat Mat Gar Slots Evolved 4 | . . 2 2 . Power . | . . . . . Propulsion . | . . . . . Utility 4 | . . 2 2 . Weapon . | . . . . . Parts Attached 73 | 7 12 27 16 11 Power 10 | 1 2 2 3 2 Engine 7 | 1 2 2 1 1 Core 3 | . . . 2 1 Reactor . | . . . . . Propulsion 19 | 2 4 8 3 2 Treads 2 | . . 2 . . Leg 4 | . 2 2 . . Wheel 12 | 2 2 4 3 1 Hover 1 | . . . . 1 Flight . | . . . . . Utility 20 | 2 2 5 7 4 Device 7 | 1 1 1 1 3 Storage 2 | 1 . . 1 . Processor 3 | . . 1 2 . Hackware 2 | . . 1 . 1 Protection 6 | . 1 2 3 . Artifact . | . . . . . Weapon 24 | 2 4 12 3 3 Energy Gun 10 | 2 2 5 1 . Energy Cannon 8 | . . 4 2 2 Ballistic Gun 3 | . 2 1 . . Ballistic Cannon . | . . . . . Launcher 2 | . . 2 . . Special Weapon 1 | . . . . 1 Impact Weapon . | . . . . . Slashing Weapon . | . . . . . Piercing Weapon . | . . . . . Special Melee Weapon . | . . . . . Unidentified Prototypes 4 | . . 3 1 . Parts Lost 30 | . 8 3 3 16 Power 5 | . 1 . . 4 Propulsion 7 | . 2 1 . 4 Utility 12 | . 1 2 3 6 Weapon 6 | . 4 . . 2 Highest Loss Streak 6 | . 6 1 1 5 To Critical Strikes 1 | . 1 . . . Average Backups 8 | 1 3 4 6 18 Power . | . 1 . . . Propulsion . | . . . 1 . Utility 3 | . . 1 1 10 Weapon 3 | . . 3 3 5 Tool/Special . | . . . . . Unused Backups 22 | . . 5 1 16 Power 2 | . . 2 . . Propulsion 1 | . . . 1 . Utility 14 | . . . . 14 Weapon 5 | . . 3 . 2 Tool/Special . | . . . . . Average Slot Usage (%) 88 | . 80 89 94 86 Engine 7 | . 14 10 3 2 Core 2 | . . . 5 6 Treads 3 | . . 2 13 . Leg 4 | . 3 9 . . Wheel 11 | . 23 8 4 16 Device 15 | . 10 15 14 18 Storage 2 | . . . 2 9 Processor 10 | . . 9 18 9 Hackware 2 | . . 1 9 1 Protection 5 | . . 7 3 5 Energy Gun 5 | . 16 6 1 3 Energy Cannon 9 | . . 9 11 14 Ballistic Gun 3 | . 10 3 4 . Launcher 1 | . . 2 . . Peak Build Rating 31 | 6 8 23 29 31 Average Rating 18 | 4 6 15 25 26 On Entrance 13 | . 6 8 23 28 Naked Turns . | . . . . . Heaviest Build 103 | 10 13 21 102 103 Greatest Support 40 | 32 32 40 40 32 Greatest Overweight (x) 29 | . . 1 6 29 Average Overweight (x) . | . . . 1 3 Largest Inventory Capacity 25 | 8 5 5 25 25 Average Capacity 11 | 5 5 5 11 25 Most Carried 22 | 2 5 5 12 22 Average Carried 8 | 1 3 4 6 18 Final Capacity 25 | 5 5 5 25 25 Final Carried 19 | 2 5 5 12 19 Class Distribution -------------------- 68% | Mutant 21% | Scavenger-Mutant 9% | Bothacker-Mutant Dominant Class ---------------- Mutant | -10/Materials Mutant | -9/Materials Mutant | -8/Materials Scavenger-Mutant | -8/Garrison Resources | -11 -10 -9 -8 -8 ----------- Run | Yrd Mat Mat Mat Gar Matter Collected 1338 | 202 192 436 297 211 Remotely 38 | . . . . 38 Salvage Created 3256 | 127 403 1095 928 703 Parts 187 | 8 28 81 47 23 Haulers Intercepted 1 | . . 1 . . Recyclers Shooed 1 | 1 . . . . Parts Field Recycled . | . . . . . Retrieved Matter . | . . . . . Parts Self-Destructed . | . . . . . Prevented . | . . . . . Kills | -11 -10 -9 -8 -8 ------- Run | Yrd Mat Mat Mat Gar Combat Hostiles Destroyed 77 | . 13 33 16 15 Guns 36 | . 13 15 7 1 Cannons 26 | . . 6 7 13 AOE 13 | . . 11 1 1 Classes Destroyed 12 | 2 3 4 2 1 Builder 3 | . . 2 1 . Tunneler 5 | 4 . 1 . . Hauler 1 | . . 1 . . Recycler 4 | 1 . . 3 . Operator 1 | . . . 1 . Watcher 4 | . 1 3 . . Swarmer 27 | . 6 15 4 2 Grunt 32 | . 7 10 5 10 Brawler 1 | . . . 1 . Duelist 2 | . . 1 1 . Sentry 12 | . . 7 5 . Programmer 3 | . . . . 3 Best Kill Streak 8 | 5 4 8 5 3 Combat Bots Only 4 | . 4 4 4 3 Max Kills in Single Turn 3 | 1 1 3 2 1 Gunslinging . | . . . . . Exploded 3 | . . 3 1 1 Melee . | . . . . . Uniques/NPCs Destroyed . | . . . . . Combat | -11 -10 -9 -8 -8 -------- Run | Yrd Mat Mat Mat Gar Hostile Shots Fired 383 | . 88 98 72 125 Missed 104 | . 17 29 23 35 Hits 279 | . 71 69 49 90 Melee 9 | . . . 5 4 Projectile 270 | . 71 69 44 86 Critical Strikes 14 | . 1 2 5 6 Damage Taken 3832 | . 698 885 767 1482 Core 881 | . 154 162 43 522 Absorbed by Shields 60 | . . . . 60 Core Remaining (%) 65 | 100 38 59 . . Volleys Fired 220 | 10 36 72 45 57 Largest 2 | 2 2 2 2 2 Hottest 136 | 100 100 136 128 128 Shots Fired 407 | 20 68 133 87 99 Gun 217 | 20 68 92 32 5 Cannon 177 | . . 34 54 89 Launcher 12 | . . 7 1 4 Special 1 | . . . . 1 Kinetic 76 | . 30 24 22 . Thermal 250 | 20 34 53 54 89 Explosive 6 | . . 6 . . Electromagnetic 74 | . 4 50 11 9 Robot Hit Streak 16 | 4 6 14 16 13 Robot Miss Streak 6 | 3 3 4 6 6 Penetration Max . | . . . . . Secondary Targets 3 | . 3 . . . Max Gunslinging Chain 1 | . 1 . . . Shots Hit Robots 252 | 9 38 84 63 58 Core Hits 148 | 6 20 61 32 29 Critical Kills 2 | . . 1 1 . Critical Parts Destroyed . | . . . . . Critical Strikes 3 | 1 . 1 1 . Burn 1 | 1 . . . . Meltdown 2 | . . 1 1 . Melee Attacks . | . . . . . Impact . | . . . . . Slashing . | . . . . . Piercing . | . . . . . Sneak Attacks . | . . . . . Combat Hostiles . | . . . . . Follow-up Attacks . | . . . . . Damage Inflicted 5506 | 124 444 2027 1382 1529 Guns 2130 | 124 440 1023 442 101 Cannons 2462 | . . 370 883 1209 Explosions 882 | . . 618 45 219 Melee . | . . . . . Ramming 32 | . 4 16 12 . Kinetic 699 | . 180 231 288 . Thermal 3106 | 124 226 567 883 1306 Explosive 551 | . . 551 . . Electromagnetic 1118 | . 34 662 199 223 Impact . | . . . . . Slashing . | . . . . . Piercing . | . . . . . Highest Corruption 3 | . . 1 . 3 Average Corruption 2 | . . 1 . 2 Corruption Purged . | . . . . . Corruption Blocked . | . . . . . Effects 16 | . . 1 . 15 Message Errors 4 | . . . . 4 Matter Fused 3 | . . . . 3 Heat Flow Errors 1 | . . 1 . . Energy Discharges 4 | . . . . 4 Data Loss (minor) 3 | . . . . 3 Misfires 1 | . . . . 1 Overload Shots . | . . . . . Overflow Damage 29 | . . . 11 18 Projectiles 29 | . . . 11 18 Explosions . | . . . . . Melee . | . . . . . Knockbacks . | . . . . . Impact . | . . . . . Kinetic . | . . . . . Secondary . | . . . . . Self-Inflicted Damage 215 | . 2 99 6 108 Shots 7 | . . 3 . 4 Rammed 4 | . 1 2 1 . Targets Rammed 7 | . 1 5 1 . Kicked 2 | . . 2 . . Crushed 1 | . . 1 . . Highest Temperature 424 | 390 241 169 424 248 Average Temperature 86 | 219 70 37 115 95 Received Heat Transfer 1450 | . 234 276 297 643 Effects 1 | . . . 1 . Damage (minor) 1 | . . . 1 . Siege Activations . | . . . . . Martial Activations . | . . . . . Shielding Activations . | . . . . . Robots Disrupted . | . . . . . Combat Hostiles . | . . . . . Robots Corrupted 1 | . . 1 . . Combat Hostiles . | . . . . . Parts Fried 2 | . . 2 . . Impact Corruptions . | . . . . . Robots Melted 2 | . . 1 1 . Combat Hostiles 2 | . . 1 1 . Parts Melted 10 | 2 1 2 1 4 Heat Transferred 5800 | 444 629 1136 1554 2037 Parts Sabotaged . | . . . . . Parts Stolen . | . . . . . Parts Stripped . | . . . . . Power Chain Reactions 4 | . . 1 . 3 Alert | -11 -10 -9 -8 -8 ------- Run | Yrd Mat Mat Mat Gar Maximum Alert Level 2 | . 1 1 1 2 Low Security (%) 54 | 100 99 74 43 3 Level 1 37 | . . 25 56 63 Level 2 8 | . . . . 33 Level 3 . | . . . . . Level 4 . | . . . . . Level 5 . | . . . . . High Security . | . . . . . Max Security . | . . . . . Peak Influence 506 | 10 198 358 309 506 Initial 189 | . 3 . 143 189 Average 202 | 1 83 135 227 376 Influence Increases 2483 | 25 378 1100 473 507 Destroy 0b10 Robot/C 1540 | . 260 660 320 300 Destroy 0b10 Robot/NC 90 | 25 5 35 25 . Destroy Leader 310 | . 52 148 100 10 Allied During Kill 1 | . . . . 1 Successful Hack 43 | . . 17 12 14 Select Force Hacks 90 | . 30 60 . . Disable Machine 30 | . . 30 . . Anti-Garrison Action 100 | . . . . 100 Destroy Structure 114 | . 1 60 1 52 Lose Combat Pursuer 165 | . 30 90 15 30 Influence Decreases 2007 | 20 383 759 522 323 Entered New Map 303 | . 2 . 198 103 Time Decay 947 | 20 151 482 294 . Lost Part 300 | . 80 30 30 160 Lost Ally 60 | . . . . 60 Purge Threat 397 | . 150 247 . . Squads Dispatched 10 | . 3 3 4 . Investigation 5 | . 2 2 1 . Extermination . | . . . . . Reinforcement 2 | . 1 1 . . Assault . | . . . . . Garrison 3 | . . . 3 . Intercept . | . . . . . Searches Triggered . | . . . . . Construction Impeded . | . . . . . Haulers Reinforced . | . . . . . Active Scanning Responses . | . . . . . Cargo Convoy Interrupts . | . . . . . Stealth | -11 -10 -9 -8 -8 --------- Run | Yrd Mat Mat Mat Gar Distress Signals 2 | . . 1 1 . Communications Jammed . | . . . . . Distress Signals . | . . . . . Times Spotted 115 | . 18 50 21 26 Peak Tracking Total 6 | . 4 4 6 5 Tactical Retreats 7 | . 1 3 1 2 Traps | -11 -10 -9 -8 -8 ------- Run | Yrd Mat Mat Mat Gar Traps Triggered 11 | . 1 1 . 9 Indirectly . | . . . . . Trap Hack Attempts . | . . . . . Triggered . | . . . . . Disarmed . | . . . . . Reprogrammed . | . . . . . Reused . | . . . . . Traps Extracted . | . . . . . Installed . | . . . . . Triggered . | . . . . . Machines | -11 -10 -9 -8 -8 ---------- Run | Yrd Mat Mat Mat Gar Machines Disabled 4 | . . 2 . 2 Max in Single Turn 1 | . . 1 . 1 Garrison Relay 2 | . . . . 2 Machines Repaired . | . . . . . Machines Dismantled . | . . . . . Machines Sabotaged . | . . . . . Overloaded Fab Kills . | . . . . . Hacking | -11 -10 -9 -8 -8 --------- Run | Yrd Mat Mat Mat Gar Machines Accessed 22 | . 2 13 6 1 Terminals 17 | . 1 11 4 1 Fabricators . | . . . . . Repair Stations . | . . . . . Recycling Units 4 | . 1 2 1 . Scanalyzers . | . . . . . Garrison Access 1 | . . . 1 . Total Hacks 58 | . 5 30 22 1 Successful 22 | . 2 11 8 1 Failed 36 | . 3 19 14 . Catastrophic 9 | . . 6 3 . Database Lockouts . | . . . . . Manual 35 | . 4 17 14 . Terminals 50 | . 4 28 17 1 Fabricators . | . . . . . Repair Stations . | . . . . . Recycling Units 7 | . 1 2 4 . Scanalyzers . | . . . . . Garrison Access 1 | . . . 1 . Terminal Hacks 12 | . 1 7 3 1 Prototype ID Bank 1 | . . 1 . . Emergency Access Points 1 | . . . . 1 Terminal Index 1 | . . 1 . . Unreport Threat 3 | . 1 2 . . Locate Traps 1 | . . 1 . . Surveillance Status 1 | . . . 1 . Hauler Manifests 2 | . . 1 1 . Registered Components 2 | . . 1 1 . Fabricator Hacks . | . . . . . Repair Station Hacks . | . . . . . Recycling Unit Hacks . | . . . . . Scanalyzer . | . . . . . Garrison Access Hacks 1 | . . . 1 . Unlock Access 1 | . . . 1 . Unauthorized Hacks 9 | . 1 4 4 . Terminals 6 | . . 2 4 . Botnet 6 | . . 2 4 . Fabricators . | . . . . . Repair Stations . | . . . . . Recycling Units 3 | . 1 2 . . Tunnel 3 | . 1 2 . . Scanalyzers . | . . . . . Garrison Access . | . . . . . Data Cores Recovered 1 | . . . 1 . Used . | . . . . . Hacking Detections 15 | . 1 8 6 . Full Trace Events 1 | . . . 1 . Feedback Events . | . . . . . Feedback Blocked . | . . . . . Robot Schematics Acquired . | . . . . . Robots Built . | . . . . . Authchips . | . . . . . Time . | . . . . . Total Robot Build Rating . | . . . . . Part Schematics Acquired . | . . . . . Parts Built . | . . . . . Authchips . | . . . . . Time . | . . . . . Total Part Build Rating . | . . . . . Parts Repaired . | . . . . . Time . | . . . . . Parts Recycled . | . . . . . Recycled Matter . | . . . . . Retrieved Matter . | . . . . . Retrieved Components . | . . . . . Parts Scanalyzed . | . . . . . Part Schematics Acquired . | . . . . . Parts Damaged . | . . . . . Bothacking | -11 -10 -9 -8 -8 ------------ Run | Yrd Mat Mat Mat Gar Used RIF Installer 1 | . . . . 1 Robots Hacked 1 | . . . . 1 Non-combat . | . . . . . Combat 1 | . . . . 1 Robot Hacks Applied 1 | . . . . 1 overwrite_iff 1 | . . . . 1 Relay Couplers Released 9 | . . . . 9 Machine Destruction 9 | . . . . 9 Attached 1 | . . . . 1 Fabnet Peak Effective % . | . . . . . Robots Rewired 3 | . . . . 3 Allies Hacked . | . . . . . Hacks Repelled . | . . . . . Allies | -11 -10 -9 -8 -8 -------- Run | Yrd Mat Mat Mat Gar Total Allies 4 | . . . . 4 Largest Group 3 | . . . . 3 Highest-Rated Group 18 | . . . . 18 Highest-Rated Ally 18 | . . . . 18 Total Orders . | . . . . . Ally Attacks 14 | . . . . 14 Total Damage 165 | . . . . 165 Kills . | . . . . . Allies Corrupted . | . . . . . Allies Melted . | . . . . . Intel | -11 -10 -9 -8 -8 ------- Run | Yrd Mat Mat Mat Gar Active Infowar (turns) 3120 | 9 183 1390 649 889 Optics 2928 | . . 1390 649 889 Seismic 192 | 9 183 . . . Robot Analysis Total . | . . . . . Derelict Logs Recovered . | . . . . . Drone Launches . | . . . . . Drone Recoveries . | . . . . . Exploration | -11 -10 -9 -8 -8 ------------- Run | Yrd Mat Mat Mat Gar Turns Passed 3604 | 97 371 1598 649 889 Spaces Moved 2012 | 60 263 1029 275 385 Core 13 | 12 . . . 1 Treads 313 | . . 121 192 . Legs 502 | . 13 489 . . Wheels 1184 | 48 250 419 83 384 Hover . | . . . . . Flight . | . . . . . Fastest Speed 50 | 50 80 80 145 130 Average Speed 126 | 90 91 115 169 152 Slowest Speed 1500 | 100 120 190 330 1500 Overloaded Moves . | . . . . . Propulsion Burnouts . | . . . . . Robots Hopped . | . . . . . Potential Cave-ins . | . . . . . Cave-ins Triggered . | . . . . . Exploration Rate (%) 41 | 3 45 92 23 46 Regions Visited 4 Branch Regions . Pre-discovered Areas 3 | . 1 2 . . Known Exits Taken 1 | . . . 1 . Unknown Exits Taken 3 | 1 1 1 . . Scrap Searched . | . . . . . Spaces Dug 9 | . . 9 . . Terrain Destroyed 78 | . . 56 . 22 Melee . | . . . . . Projectile 2 | . . . . 2 AOE 76 | . . 56 . 20 Terrain Rammed . | . . . . . Walls Destroyed . | . . . . . Machines Disabled . | . . . . . Actions | -11 -10 -9 -8 -8 --------- Run | Yrd Mat Mat Mat Gar Total 2670 | 79 326 1305 371 589 Wait 179 | . 5 134 9 31 Move 2009 | 59 262 1029 274 385 Hop . | . . . . . Pick Up 43 | 2 5 9 10 17 Fast Attach 44 | 7 8 19 7 3 Attach 22 | . 3 2 6 11 Detach 4 | . . 1 2 1 Swap 26 | . 3 9 8 6 Drop 40 | 1 3 26 9 1 Fire 220 | 10 36 72 45 57 Melee . | . . . . . Ram 2 | . 1 . 1 . Kick 2 | . . 2 . . Crush 2 | . . 2 . . Escape Stasis 67 | . . . . 67 Rewire 10 | . . . . 10 Trap . | . . . . . Miscellaneous . | . . . . . Route ------- -11/Scrapyard -10/Materials (discovered 4 exits: *Mat x2 / [*Min] / [*Sub]) -9/Materials (discovered 4 exits: *Mat x3 / [*Min]) -8/Materials -8/Garrison (discovered 2 exits: [*Mat x2]) History --------- Turn | Location | Event 7 | -11/Scrapyard | Discovered new exit (range 16) 98 | -11/Scrapyard | Entered Materials 237 | -10/Materials | Discovered new exit (range 8) 306 | -10/Materials | Core integrity fell below 50% 309 | -10/Materials | Build established: Mutant 323 | -10/Materials | Discovered new exit (range 14) 382 | -10/Materials | Lost 6 parts (1p2n1u2w) 435 | -10/Materials | Discovered new exit (range 10) 444 | -10/Materials | Discovered new exit (range 9) 469 | -10/Materials | Entered another Materials area 469 | -9/Materials | Evolved 2 slots: Utility x2 1046 | -9/Materials | Discovered new exit (range 16) 1089 | -9/Materials | Discovered new exit (range 11) 1595 | -9/Materials | Discovered new exit (range 16) 1994 | -9/Materials | Discovered new exit (range 15) 2067 | -9/Materials | Entered another Materials area 2067 | -8/Materials | Evolved 2 slots: Utility x2 2458 | -8/Materials | Garrison activated, responded to threat 2648 | -8/Materials | Identified exit to Garrison 2716 | -8/Materials | Entered Garrison 2746 | -8/Garrison | Triggered checkpoint 2835 | -8/Garrison | Lost 3 parts (1n2u) 2900 | -8/Garrison | Garrison Relay disabled 3002 | -8/Garrison | Triggered checkpoint 3016 | -8/Garrison | Lost 3 parts (2p1u) 3065 | -8/Garrison | Discovered new exit (range 5) 3142 | -8/Garrison | Triggered checkpoint 3149 | -8/Garrison | Build established: Scavenger-Mutant 3188 | -8/Garrison | Lost 3 allies 3228 | -8/Garrison | Installed Relay Interface Framework 3338 | -8/Garrison | Triggered checkpoint 3354 | -8/Garrison | Core integrity fell below 50% 3378 | -8/Garrison | Lost 3 parts (1p1n1w) 3439 | -8/Garrison | Garrison Relay disabled 3502 | -8/Garrison | Discovered new exit (range 9) 3540 | -8/Garrison | Build established: Bothacker-Mutant 3574 | -8/Garrison | Triggered checkpoint 3578 | -8/Garrison | Triggered checkpoint 3597 | -8/Garrison | Core integrity fell below 20% 3605 | -8/Garrison | Destroyed by L-31 Rogue with Katana Last Messages --------------- 03575_ Acquired 38 matter. 03578_ Beams of light sweep through the air. An alarm sounds. 03578_ Tractor Beam destroyed. 03580_ Critical hit (Burn: +26). 03580_ Com. Wheel destroyed. 03580_ Jacked L-31 Rogue... >>overwrite_iff Rewriting IFF filter. 03582_ Critical hit (Burn: +26). 03582_ Critical hit (Burn: +27). 03583_ G-47 Trooper destroyed. 03584_ Stasis field depleted. 03586_ Lgt. Ion Engine destroyed. 03586_ Acquired 20 matter. 03589_ G-47 Trooper heat damages Lgt. Nuclear Core. 03591_ Network quickbooting L-31 Rogue, ETC: 9. 03593_ Wheel destroyed. 03600_ L-31 Rogue reactivates. 03601_ Imp. Heat Sink destroyed. 03604_ G-47 Trooper overheating. Map ----- +----------------------------------------------------+ | ?? #???# #?????## ##???????????# #??????????? | | ??# #???#" ^#??????# #????????????# #??????????? | | ??# #???#"# #??????# #????????????# #??????????? | | ??# #???###"##### ## #????????????# #??????????? | | ??# #?????# ## #????????????# #??????????? | | ??# #?????# ######## #????????????# #??????????? | | ??# #######"######## #######??????#"+############ | | ??# #??????# | | ??# #??????# | | ??############## ###+#### #??????# ############ | | ???????????????# #??????# #??????# #??????##### | | ???????????????# #??????# #??????# #??????# | | ???????????????# #??????+ #??????# #??????# ^ | | ???????????????# #??????# #??????# #??????# # | | ???????????????# +??????#g ######## #??????# + | | ???????????????# #??????# ## ## #??????# # | | ???????????????# #?????## ## ## ##?????# < # | | ???????????????# ###+### =[%= ##????# # | | ???????????????# [%=%= T#????# # | | ???????????????# =[= ##????##### | | ???????????????########## ## ## #?????????? | | ??????????????????????### ## ## #?????????? | | ??????????????????????#C "?????????? | | ????????????????#######Cg "?????????? | | ????????????????? C%l "?????????? | | ??????????????????????#[%@ "?????????? | | ??????????????????????### ^## ## #?????????? | | ????????????????+???????# ## ## #?????????? | | ??????????????????????? g ?????????? | | ??????????????????????? ????????? | | ??????????????????????+## ###?+?????? | | ????????????????????????## ##g ## ##?????????? | | ?????????????????????????# #? ## #??????????? | | ?????????????????+???????? #??+###? #??????????? | | ?????????????????????????+ #??????? ???????+??/? | | ?????????????????????????? #????????????????????? | | ????+???+????????????????? #?????????+??????????? | | ??????????????????????+??? #????????????????????? | | ??+??????????????????????? +????????????????????? | | ??+??????????????????????? #????????????????????? | | ?????????+++??????????????? #????????????????????? | | ??????????????????????????? #????????+???????????? | | ??????????????????????????? ?????????????????????? | | ??????????????????????????? ?????????????????????? | | ?????????????????????????????????????????????????? | | ?????????????????????????????????????????????????? | | ?????????????????????????????????????????????????? | | ?????????????????????+???????????????????????????? | | ????????????????????????????????????????+????+???? | | ?????????????????????????????????????????????????? | +----------------------------------------------------+ Best States ------------- Heat Dissipation 73 Coolant Potential 50 Energy Generation 14 Energy Capacity 280 Matter Stores 300 Matter Capacity 300 Sight Range 18 Terrain Scan Density 110 Armor Coverage 300 Evasion (%) 55 Targeting Accuracy 5 Recoil Reduction 2 Defensive Hacking 10 Relay Coupler Types 1 Relay Coupler Value 22 Item Schematics ----------------- None Robot Schematics ------------------ None Fabricated ------------ Nothing Repaired ---------- Nothing Alien Tech Used ----------------- None Achievements -------------- None Challenges ------------ None Game ------ Seed AccelerationMomentumLauncher Manual? 0 Play Time 00:42:05 Cumulative 283.7 hours Start 2025.07.26 @ 12:02:02 End 2025.07.26 @ 12:46:10 Sessions 1 Manual Loads 0 Difficulty Rogue Special Mode None Game No. 110 Rogue 39 Adventurer 68 Explorer 3 Win Type - Total 23 Types 15/1/1/4/1/0/0/0/0/1 Lore% 74 Gallery% 72 Achievement% 69 Wizard Run 0 Options --------- Layout 0 ASCII 0 Keyboard 0 Movement Numpad Keybinds 0 Fullscreen 1 Font 24/Smallcaps Map View 76x50 Zoom Use 0% Tactical HUD 1 Map Filters NONE Filters NONE Steam 1 RUN: 45d3bc3c-a542-47a2-a618-58a9294c401c